fUSD/lending_fUSD_20250216
["ID","MTS","AMOUNT","RATE_DAILY","PERIOD"]
[353264815,1739722263088,-500.0,0.00011697,2]
[353264816,1739722263098,-500.0,0.00011697,2]
[353264817,1739722263109,-500.0,0.00011697,2]
[353264818,1739722263119,-500.0,0.00011697,2]
[353264819,1739722263129,-500.0,0.00011697,2]
[353264820,1739722263139,-721.65,0.00011697,2]
[353264821,1739722263149,-500.0,0.00011697,2]
[353264822,1739722263159,-527.32054272,0.00011697,2]
[353264823,1739722263169,-500.0,0.00011697,2]
[353264824,1739722263179,-150.0,0.000117,2]
[353264825,1739722263188,-500.0,0.00011751,2]
[353264826,1739722263197,-500.0,0.00011756,2]
[353264827,1739722263207,-500.0,0.00011756,2]
[353264828,1739722263216,-680.35,0.00011756,2]
[353264829,1739722263225,-500.0,0.00011756,2]
[353264830,1739722263236,-730.51,0.00011756,2]
[353264831,1739722263246,-500.0,0.00011756,2]
[353264832,1739722263257,-744.11,0.00011756,2]
[353264833,1739722263267,-518.56,0.00011756,2]
[353264834,1739722263277,-500.0,0.00011756,2]
[353264835,1739722263287,-1094.78,0.00011756,2]
[353264836,1739722263297,-500.0,0.00011756,2]
[353264837,1739722263306,-1254.55,0.00011756,2]
[353264838,1739722263316,-624.5,0.00011756,2]
[353264839,1739722263326,-561.95,0.00011756,2]
[353264840,1739722263336,-500.0,0.00011756,2]
[353264841,1739722263345,-1045.33,0.00011756,2]
[353264842,1739722263355,-500.0,0.00011756,2]
[353264843,1739722263365,-562.41,0.00011756,2]
[353264844,1739722263375,-500.0,0.00011756,2]
[353264845,1739722263385,-537.7,0.00011756,2]
[353264846,1739722263396,-1330.29,0.00011756,2]
[353264847,1739722263407,-1309.87,0.00011756,2]
[353264848,1739722263417,-500.0,0.00011756,2]
[353264849,1739722263426,-500.0,0.00011756,2]
[353264850,1739722263436,-500.0,0.00011756,2]
[353264851,1739722263446,-587.45,0.00011756,2]
[353264852,1739722263455,-954.36,0.00011756,2]
[353264853,1739722263465,-500.0,0.00011756,2]
[353264854,1739722263475,-500.0,0.00011778,2]
[353264855,1739722263484,-500.0,0.00011778,2]
[353264856,1739722263494,-500.0,0.00011778,2]
[353264857,1739722263504,-500.0,0.00011778,2]
[353264858,1739722263514,-500.0,0.00011778,2]
[353264859,1739722263524,-500.0,0.00011778,2]
[353264860,1739722263533,-500.0,0.00011778,2]
[353264861,1739722263543,-500.0,0.00011778,2]
[353264862,1739722263553,-500.0,0.00011778,2]
[353264863,1739722263562,-500.0,0.00011778,2]
[353264864,1739722263572,-527.75,0.00011778,2]
[353264865,1739722263582,-500.0,0.00011778,2]
[353264866,1739722263592,-500.0,0.00011778,2]
[353264867,1739722263601,-500.0,0.00011778,2]
[353264868,1739722263611,-500.0,0.00011778,2]
[353264869,1739722263621,-500.0,0.00011778,2]
[353264870,1739722263630,-500.0,0.00011778,2]
[353264871,1739722263640,-500.0,0.00011778,2]
[353264872,1739722263650,-500.0,0.00011778,2]
[353264873,1739722263659,-500.0,0.00011778,2]
[353264874,1739722263669,-500.0,0.00011778,2]
[353264875,1739722263679,-500.0,0.00011778,2]
[353264876,1739722263689,-500.0,0.00011778,2]
[353264877,1739722263698,-500.0,0.00011778,2]
[353264878,1739722263708,-500.0,0.00011778,2]
[353264879,1739722263718,-500.0,0.00011778,2]
[353264880,1739722263728,-500.0,0.00011778,2]
[353264881,1739722263738,-649.78,0.00011778,2]
[353264882,1739722263747,-1206.44,0.00011778,2]
[353264883,1739722263757,-500.0,0.00011778,2]
[353264884,1739722263767,-500.0,0.00011778,2]
[353264885,1739722263776,-334.019757,0.00011778,2]
[353264886,1739722263786,-706.8,0.00011778,2]
[353264887,1739722263796,-768.0,0.00011778,2]
[353264888,1739722263806,-500.0,0.00011778,2]
[353264889,1739722263817,-500.0,0.00011778,2]
[353264890,1739722263827,-442.486785,0.00011778,2]
[353264891,1739722263837,-500.0,0.00011778,2]
[353264892,1739722263847,-956.97,0.00011778,2]
[353264893,1739722263857,-2145.36,0.00011778,2]
[353264894,1739722263867,-579.91,0.00011778,2]
[353264895,1739722263876,-500.0,0.00011778,2]
[353264896,1739722263887,-536.29,0.00011778,2]
[353264897,1739722263897,-747.46,0.00011778,2]
[353264898,1739722263907,-500.0,0.00011778,2]
[353264899,1739722263917,-692.26,0.00011778,2]
[353264900,1739722263927,-609.14,0.00011778,2]
[353264901,1739722263937,-196.37590973,0.00011778,2]
[353264902,1739722263948,-500.0,0.00011778,2]
[353264903,1739722263958,-809.97,0.00011778,2]
[353264904,1739722263968,-512.74,0.00011778,2]
[353264905,1739722263977,-500.0,0.00011778,2]
[353264906,1739722263987,-892.17,0.00011778,2]
[353264907,1739722263998,-500.0,0.00011778,2]
[353264908,1739722264008,-969.53,0.00011778,2]
[353264909,1739722264019,-663.59,0.00011778,2]
[353264910,1739722264034,-1575.94,0.00011778,2]
[353264911,1739722264044,-612.7,0.00011778,2]
[353264912,1739722264054,-500.0,0.00011778,2]
[353264913,1739722264064,-500.0,0.00011778,2]
[353264914,1739722264075,-558.19,0.00011778,2]
[353264915,1739722264084,-500.0,0.00011778,2]
[353264916,1739722264094,-537.83,0.00011778,2]
[353264917,1739722264105,-500.0,0.00011778,2]
[353264918,1739722264115,-500.0,0.00011778,2]
[353264919,1739722264124,-690.88,0.00011778,2]
[353264920,1739722264133,-500.0,0.00011778,2]
[353264921,1739722264144,-1095.32,0.00011778,2]
[353264922,1739722264154,-742.79,0.00011778,2]
[353264923,1739722264164,-500.0,0.00011778,2]
[353264924,1739722264174,-680.75,0.00011778,2]
[353264925,1739722264184,-500.0,0.00011778,2]
[353264926,1739722264194,-500.0,0.00011778,2]
[353264927,1739722264203,-849.81,0.00011778,2]
[353264928,1739722264212,-865.4,0.00011778,2]
[353264929,1739722264223,-500.0,0.00011778,2]
[353264930,1739722264233,-649.43,0.00011778,2]
[353264931,1739722264243,-692.22,0.00011778,2]
[353264932,1739722264253,-1772.42,0.00011778,2]
[353264933,1739722264263,-1000.0,0.00011778,2]
[353264934,1739722264273,-873.89,0.00011778,2]
[353264935,1739722264283,-788.66,0.00011778,2]
[353264936,1739722264292,-500.0,0.00011778,2]
[353264937,1739722264302,-500.0,0.00011778,2]
[353264938,1739722264311,-500.0,0.00011778,2]
[353264939,1739722264321,-500.0,0.00011778,2]
[353264940,1739722264330,-730.86,0.00011778,2]
[353264941,1739722264340,-500.0,0.00011778,2]
[353264942,1739722264350,-941.43,0.00011778,2]
[353264943,1739722264360,-277.34,0.00011778,2]
[353264944,1739722264370,-500.0,0.00011778,2]
[353264945,1739722264379,-500.0,0.00011778,2]
[353264946,1739722264390,-899.47,0.00011778,2]
[353264947,1739722264400,-549.57,0.00011778,2]
[353264948,1739722264410,-500.0,0.00011778,2]
[353264949,1739722264420,-500.0,0.00011778,2]
[353264950,1739722264430,-733.73,0.00011778,2]
[353264951,1739722264440,-500.0,0.00011778,2]
[353264952,1739722264450,-862.86,0.00011778,2]
[353264953,1739722264460,-604.23,0.00011778,2]
[353264954,1739722264470,-500.0,0.00011778,2]
[353264955,1739722264479,-500.0,0.00011778,2]
[353264956,1739722264490,-784.87,0.00011778,2]
[353264957,1739722264500,-500.0,0.00011778,2]
[353264958,1739722264509,-975.8,0.00011778,2]
[353264959,1739722264520,-2237.07,0.00011778,2]
[353264960,1739722264531,-525.89,0.00011778,2]
[353264961,1739722264541,-500.0,0.00011778,2]
[353264962,1739722264551,-500.0,0.00011779,2]
[353264963,1739722264561,-500.0,0.00011779,2]
[353264964,1739722264571,-500.0,0.00011779,2]
[353264965,1739722264581,-500.0,0.00011779,2]
[353264966,1739722264591,-500.0,0.00011779,2]
[353264967,1739722264601,-500.0,0.00011779,2]
[353264968,1739722264612,-500.0,0.00011779,2]
[353264969,1739722264623,-563.28828107,0.00011779,2]
[353264970,1739722264633,-500.0,0.00011779,2]
[353264971,1739722264644,-500.0,0.00011779,2]
[353264972,1739722264655,-500.0,0.00011779,2]
[353264973,1739722264665,-500.0,0.00011779,2]
[353264974,1739722264675,-500.0,0.00011779,2]
[353264975,1739722264685,-500.0,0.00011779,2]
[353264976,1739722264694,-500.0,0.00011779,2]
[353264977,1739722264704,-500.0,0.00011779,2]
[353264978,1739722264714,-579.79,0.00011779,2]
[353264979,1739722264723,-500.0,0.00011779,2]
[353264980,1739722264733,-500.0,0.00011779,2]
[353264981,1739722264743,-500.0,0.00011779,2]
[353264982,1739722264752,-500.0,0.00011779,2]
[353264983,1739722264762,-500.0,0.00011779,2]
[353264984,1739722264772,-500.0,0.00011779,2]
[353264985,1739722264782,-500.0,0.00011779,2]
[353264986,1739722264791,-500.0,0.00011779,2]
[353264987,1739722264801,-500.0,0.00011779,2]
[353264988,1739722264810,-706.17,0.00011779,2]
[353264989,1739722264820,-500.0,0.00011779,2]
[353264990,1739722264829,-500.0,0.00011779,2]
[353264991,1739722264839,-500.0,0.00011779,2]
[353264992,1739722264998,-500.0,0.00011779,2]
[353264993,1739722265015,-500.0,0.00011779,2]
[353264994,1739722265025,-500.0,0.00011779,2]
[353264995,1739722265040,-721.65,0.00011779,2]
[353264996,1739722265049,-500.0,0.00011779,2]
[353264997,1739722265059,-500.0,0.00011779,2]
[353264998,1739722265069,-421.23963344,0.00011803,2]
[353264999,1739722265078,-500.0,0.00011838,2]
[353265000,1739722265088,-500.0,0.00011838,2]
[353265001,1739722265098,-680.35,0.00011838,2]
[353265002,1739722265108,-500.0,0.00011838,2]
[353265003,1739722265118,-730.51,0.00011838,2]
[353265004,1739722265127,-500.0,0.00011838,2]
[353265005,1739722265137,-744.11,0.00011838,2]
[353265006,1739722265148,-518.56,0.00011838,2]
[353265007,1739722265158,-500.0,0.00011838,2]
[353265008,1739722265167,-1094.78,0.00011838,2]
[353265009,1739722265176,-500.0,0.00011838,2]
[353265010,1739722265186,-1254.55,0.00011838,2]
[353265011,1739722265195,-624.5,0.00011838,2]
[353265012,1739722265205,-561.95,0.00011838,2]
[353265013,1739722265214,-500.0,0.00011838,2]
[353265014,1739722265223,-1045.33,0.00011838,2]
[353265015,1739722265233,-500.0,0.00011838,2]
[353265016,1739722265243,-562.41,0.00011838,2]
[353265017,1739722265253,-500.0,0.00011838,2]
[353265018,1739722265263,-537.7,0.00011838,2]
[353265019,1739722265272,-1330.29,0.00011838,2]
[353265020,1739722265282,-1309.87,0.00011838,2]
[353265021,1739722265291,-500.0,0.00011838,2]
[353265022,1739722265300,-500.0,0.00011838,2]
[353265023,1739722265309,-500.0,0.00011838,2]
[353265024,1739722265319,-587.45,0.00011838,2]
[353265025,1739722265328,-954.36,0.00011838,2]
[353265026,1739722265337,-500.0,0.00011838,2]
[353265027,1739722265346,-442.30706565,0.0001186,2]
[353265028,1739722265355,-500.0,0.0001186,2]
[353265029,1739722265365,-500.0,0.0001186,2]
[353265030,1739722265374,-500.0,0.0001186,2]
[353265031,1739722265383,-500.0,0.0001186,2]
[353265032,1739722265393,-500.0,0.0001186,2]
[353265033,1739722265403,-500.0,0.0001186,2]
[353265034,1739722265412,-500.0,0.0001186,2]
[353265035,1739722265422,-500.0,0.0001186,2]
[353265036,1739722265431,-500.0,0.0001186,2]
[353265037,1739722265441,-527.75,0.0001186,2]
[353265038,1739722265451,-500.0,0.0001186,2]
[353265039,1739722265460,-500.0,0.0001186,2]
[353265040,1739722265469,-500.0,0.0001186,2]
[353265041,1739722265479,-500.0,0.0001186,2]
[353265042,1739722265488,-500.0,0.0001186,2]
[353265043,1739722265498,-500.0,0.0001186,2]
[353265044,1739722265507,-500.0,0.0001186,2]
[353265045,1739722265517,-500.0,0.0001186,2]
[353265046,1739722265527,-500.0,0.0001186,2]
[353265047,1739722265536,-626.24,0.0001186,2]
[353265048,1739722265545,-500.0,0.0001186,2]
[353265049,1739722265555,-500.0,0.0001186,2]
[353265050,1739722265564,-500.0,0.0001186,2]
[353265051,1739722265573,-500.0,0.0001186,2]
[353265052,1739722265582,-500.0,0.0001186,2]
[353265053,1739722265591,-344.00708783,0.0001186,2]
[353265054,1739722265601,-649.78,0.0001186,2]
[353265055,1739722265610,-1206.44,0.0001186,2]
[353265056,1739722265619,-500.0,0.0001186,2]
[353265057,1739722265628,-500.0,0.0001186,2]
[353265058,1739722265638,-334.019757,0.0001186,2]
[353265059,1739722265648,-706.8,0.0001186,2]
[353265060,1739722265658,-500.0,0.0001186,2]
[353265061,1739722265667,-500.0,0.0001186,2]
[353265062,1739722265677,-442.486785,0.0001186,2]
[353265063,1739722265687,-500.0,0.0001186,2]
[353265064,1739722265696,-2145.36,0.0001186,2]
[353265065,1739722265705,-956.97,0.0001186,2]
[353265066,1739722265715,-500.0,0.0001186,2]
[353265067,1739722265724,-536.29,0.0001186,2]
[353265068,1739722265733,-747.46,0.0001186,2]
[353265069,1739722265743,-500.0,0.0001186,2]
[353265070,1739722265753,-692.26,0.0001186,2]
[353265071,1739722265763,-609.14,0.0001186,2]
[353265072,1739722265773,-500.0,0.0001186,2]
[353265073,1739722265782,-512.74,0.0001186,2]
[353265074,1739722265792,-500.0,0.0001186,2]
[353265075,1739722265801,-892.17,0.0001186,2]
[353265076,1739722265811,-500.0,0.0001186,2]
[353265077,1739722265820,-663.59,0.0001186,2]
[353265078,1739722265830,-1575.94,0.0001186,2]
[353265079,1739722265840,-612.7,0.0001186,2]
[353265080,1739722265849,-500.0,0.0001186,2]
[353265081,1739722265859,-558.19,0.0001186,2]
[353265082,1739722265869,-500.0,0.0001186,2]
[353265083,1739722265878,-500.0,0.0001186,2]
[353265084,1739722265889,-500.0,0.0001186,2]
[353265085,1739722265898,-690.88,0.0001186,2]
[353265086,1739722265909,-500.0,0.0001186,2]
[353265087,1739722265919,-1095.32,0.0001186,2]
[353265088,1739722265928,-500.0,0.0001186,2]
[353265089,1739722265938,-680.75,0.0001186,2]
[353265090,1739722265948,-500.0,0.0001186,2]
[353265091,1739722265958,-500.0,0.0001186,2]
[353265092,1739722265967,-865.4,0.0001186,2]
[353265093,1739722265977,-500.0,0.0001186,2]
[353265094,1739722265986,-649.43,0.0001186,2]
[353265095,1739722265995,-692.22,0.0001186,2]
[353265096,1739722266004,-1772.42,0.0001186,2]
[353265097,1739722266014,-873.89,0.0001186,2]
[353265098,1739722266024,-500.0,0.0001186,2]
[353265099,1739722266041,-569.56043266,0.0001186,2]
[353265100,1739722266051,-500.0,0.0001186,2]
[353265101,1739722266061,-500.0,0.0001186,2]
[353265102,1739722266071,-500.0,0.0001186,2]
[353265103,1739722266081,-941.43,0.0001186,2]
[353265104,1739722266090,-500.0,0.0001186,2]
[353265105,1739722266099,-500.0,0.0001186,2]
[353265106,1739722266109,-549.57,0.0001186,2]
[353265107,1739722266118,-500.0,0.0001186,2]
[353265108,1739722266127,-500.0,0.0001186,2]
[353265109,1739722266137,-733.73,0.0001186,2]
[353265110,1739722266147,-500.0,0.0001186,2]
[353265111,1739722266157,-862.86,0.0001186,2]
[353265112,1739722266167,-604.23,0.0001186,2]
[353265113,1739722266176,-500.0,0.0001186,2]
[353265114,1739722266186,-500.0,0.0001186,2]
[353265115,1739722266195,-784.87,0.0001186,2]
[353265116,1739722266204,-500.0,0.0001186,2]
[353265117,1739722266213,-975.8,0.0001186,2]
[353265118,1739722266223,-2237.07,0.0001186,2]
[353265119,1739722266233,-525.89,0.0001186,2]
[353265120,1739722266242,-500.0,0.0001186,2]
[353265121,1739722266251,-500.0,0.00011861,2]
[353265122,1739722266260,-225.93469167,0.00011861,2]
[353265123,1739722266270,-529.65569899,0.00011861,2]
[353265124,1739722266279,-500.0,0.00011861,2]
[353265125,1739722266288,-296.94380389,0.00011861,2]
[353265126,1739722266298,-500.0,0.00011861,2]
[353265127,1739722266307,-500.0,0.00011861,2]
[353265128,1739722266316,-500.0,0.00011861,2]
[353265129,1739722266325,-500.0,0.00011861,2]
[353265130,1739722266335,-500.0,0.00011861,2]
[353265131,1739722266345,-500.0,0.00011861,2]
[353265132,1739722266355,-176.54383471,0.00011861,2]
[353265133,1739722266364,-500.0,0.00011861,2]
[353265134,1739722266374,-500.0,0.00011861,2]
[353265135,1739722266383,-500.0,0.00011861,2]
[353265136,1739722266392,-579.79,0.00011861,2]
[353265137,1739722266403,-500.0,0.00011861,2]
[353265138,1739722266412,-500.0,0.00011861,2]
[353265139,1739722266422,-500.0,0.00011861,2]
[353265140,1739722266431,-500.0,0.00011861,2]
[353265141,1739722266440,-500.0,0.00011861,2]
[353265142,1739722266449,-500.0,0.00011861,2]
[353265143,1739722266460,-500.0,0.00011861,2]
[353265144,1739722266469,-500.0,0.00011861,2]
[353265145,1739722266478,-500.0,0.00011861,2]
[353265146,1739722266488,-706.17,0.00011861,2]
[353265147,1739722266498,-500.0,0.00011861,2]
[353265148,1739722266507,-500.0,0.00011861,2]
[353265149,1739722266517,-500.0,0.00011861,2]
[353265150,1739722266526,-768.0,0.00011861,2]
[353265151,1739722266537,-500.0,0.00011861,2]
[353265152,1739722266546,-500.0,0.00011861,2]
[353265153,1739722266557,-579.91,0.00011861,2]
[353265154,1739722266566,-500.0,0.00011861,2]
[353265155,1739722266576,-809.97,0.00011861,2]
[353265156,1739722266587,-969.53,0.00011861,2]
[353265157,1739722266597,-721.65,0.00011861,2]
[353265158,1739722266606,-500.0,0.00011861,2]
[353265159,1739722266616,-537.83,0.00011861,2]
[353265160,1739722266626,-500.0,0.00011861,2]
[353265161,1739722266636,-742.79,0.00011861,2]
[353265162,1739722266646,-849.81,0.00011861,2]
[353265163,1739722266656,-1000.0,0.00011861,2]
[353265164,1739722266666,-788.66,0.00011861,2]
[353265165,1739722266676,-730.86,0.00011861,2]
[353265166,1739722266686,-899.47,0.00011861,2]
[353265167,1739722266695,-500.0,0.00011861,2]
[353265168,1739722266707,-500.0,0.00011888,2]
[353265169,1739722266717,-2189.30641,0.000119,2]
[353265170,1739722266726,-175.24938408,0.000119,2]
[353265171,1739722266735,-500.0,0.0001192,2]
[353265172,1739722266747,-500.0,0.0001192,2]
[353265173,1739722266757,-680.35,0.0001192,2]
[353265174,1739722266767,-500.0,0.0001192,2]
[353265175,1739722266777,-730.51,0.0001192,2]
[353265176,1739722266787,-500.0,0.0001192,2]
[353265177,1739722266797,-744.11,0.0001192,2]
[353265178,1739722266807,-518.56,0.0001192,2]
[353265179,1739722266817,-500.0,0.0001192,2]
[353265180,1739722266827,-1094.78,0.0001192,2]
[353265181,1739722266837,-500.0,0.0001192,2]
[353265182,1739722266847,-1254.55,0.0001192,2]
[353265183,1739722266858,-624.5,0.0001192,2]
[353265184,1739722266867,-561.95,0.0001192,2]
[353265185,1739722266876,-500.0,0.0001192,2]
[353265186,1739722266886,-1045.33,0.0001192,2]
[353265187,1739722266895,-500.0,0.0001192,2]
[353265188,1739722266905,-562.41,0.0001192,2]
[353265189,1739722266915,-419.35441835,0.0001192,2]
[353265190,1739722266924,-537.7,0.0001192,2]
[353265191,1739722266934,-1330.29,0.0001192,2]
[353265192,1739722266944,-1309.87,0.0001192,2]
[353265193,1739722266953,-500.0,0.0001192,2]
[353265194,1739722266963,-500.0,0.0001192,2]
[353265195,1739722266972,-500.0,0.0001192,2]
[353265196,1739722266982,-587.45,0.0001192,2]
[353265197,1739722266992,-954.36,0.0001192,2]
[353265198,1739722267002,-500.0,0.0001192,2]
[353265199,1739722267011,-500.0,0.00011942,2]
[353265200,1739722267020,-500.0,0.00011942,2]
[353265201,1739722267032,-500.0,0.00011942,2]
[353265202,1739722267042,-500.0,0.00011942,2]
[353265203,1739722267051,-500.0,0.00011942,2]
[353265204,1739722267061,-500.0,0.00011942,2]
[353265205,1739722267071,-500.0,0.00011942,2]
[353265206,1739722267080,-500.0,0.00011942,2]
[353265207,1739722267089,-500.0,0.00011942,2]
[353265208,1739722267099,-527.75,0.00011942,2]
[353265209,1739722267110,-500.0,0.00011942,2]
[353265210,1739722267119,-500.0,0.00011942,2]
[353265211,1739722267129,-500.0,0.00011942,2]
[353265212,1739722267138,-500.0,0.00011942,2]
[353265213,1739722267147,-500.0,0.00011942,2]
[353265214,1739722267157,-500.0,0.00011942,2]
[353265215,1739722267166,-500.0,0.00011942,2]
[353265216,1739722267175,-500.0,0.00011942,2]
[353265217,1739722267185,-500.0,0.00011942,2]
[353265218,1739722267194,-500.0,0.00011942,2]
[353265219,1739722267203,-500.0,0.00011942,2]
[353265220,1739722267212,-500.0,0.00011942,2]
[353265221,1739722267221,-500.0,0.00011942,2]
[353265222,1739722267231,-500.0,0.00011942,2]
[353265223,1739722267240,-649.78,0.00011942,2]
[353265224,1739722267249,-1206.44,0.00011942,2]
[353265225,1739722267259,-500.0,0.00011942,2]
[353265226,1739722267269,-500.0,0.00011942,2]
[353265227,1739722267278,-334.019757,0.00011942,2]
[353265228,1739722267288,-706.8,0.00011942,2]
[353265229,1739722267297,-500.0,0.00011942,2]
[353265230,1739722267307,-500.0,0.00011942,2]
[353265231,1739722267316,-442.486785,0.00011942,2]
[353265232,1739722267326,-500.0,0.00011942,2]
[353265233,1739722267336,-956.97,0.00011942,2]
[353265234,1739722267346,-2145.36,0.00011942,2]
[353265235,1739722267355,-500.0,0.00011942,2]
[353265236,1739722267365,-536.29,0.00011942,2]
[353265237,1739722267374,-747.46,0.00011942,2]
[353265238,1739722267383,-500.0,0.00011942,2]
[353265239,1739722267393,-692.26,0.00011942,2]
[353265240,1739722267450,-609.14,0.00011942,2]
[353265241,1739722267460,-500.0,0.00011942,2]
[353265242,1739722267470,-512.74,0.00011942,2]
[353265243,1739722267480,-500.0,0.00011942,2]
[353265244,1739722267489,-892.17,0.00011942,2]
[353265245,1739722267501,-500.0,0.00011942,2]
[353265246,1739722267510,-663.59,0.00011942,2]
[353265247,1739722267519,-1575.94,0.00011942,2]
[353265248,1739722267529,-612.7,0.00011942,2]
[353265249,1739722267539,-500.0,0.00011942,2]
[353265250,1739722267549,-558.19,0.00011942,2]
[353265251,1739722267559,-500.0,0.00011942,2]
[353265252,1739722267569,-500.0,0.00011942,2]
[353265253,1739722267579,-500.0,0.00011942,2]
[353265254,1739722267589,-690.88,0.00011942,2]
[353265255,1739722267599,-500.0,0.00011942,2]
[353265256,1739722267609,-1095.32,0.00011942,2]
[353265257,1739722267619,-500.0,0.00011942,2]
[353265258,1739722267628,-680.75,0.00011942,2]
[353265259,1739722267638,-544.47949656,0.00011942,2]
[353265260,1739722267649,-500.0,0.00011942,2]
[353265261,1739722267660,-865.4,0.00011942,2]
[353265262,1739722267669,-500.0,0.00011942,2]
[353265263,1739722267678,-649.43,0.00011942,2]
[353265264,1739722267687,-692.22,0.00011942,2]
[353265265,1739722267697,-1772.42,0.00011942,2]
[353265266,1739722267707,-873.89,0.00011942,2]
[353265267,1739722267717,-500.0,0.00011942,2]
[353265268,1739722267727,-500.0,0.00011942,2]
[353265269,1739722267736,-500.0,0.00011942,2]
[353265270,1739722267746,-500.0,0.00011942,2]
[353265271,1739722267757,-941.43,0.00011942,2]
[353265272,1739722267767,-500.0,0.00011942,2]
[353265273,1739722267776,-500.0,0.00011942,2]
[353265274,1739722267785,-549.57,0.00011942,2]
[353265275,1739722267794,-500.0,0.00011942,2]
[353265276,1739722267804,-559.59938797,0.00011942,2]
[353265277,1739722267813,-733.73,0.00011942,2]
[353265278,1739722267823,-500.0,0.00011942,2]
[353265279,1739722267832,-862.86,0.00011942,2]
[353265280,1739722267842,-604.23,0.00011942,2]
[353265281,1739722267851,-500.0,0.00011942,2]
[353265282,1739722267861,-500.0,0.00011942,2]
[353265283,1739722267870,-784.87,0.00011942,2]
[353265284,1739722267880,-500.0,0.00011942,2]
[353265285,1739722267890,-975.8,0.00011942,2]
[353265286,1739722267901,-2237.07,0.00011942,2]
[353265287,1739722267911,-525.89,0.00011942,2]
[353265288,1739722267920,-500.0,0.00011942,2]
[353265289,1739722267930,-500.0,0.00011943,2]
[353265290,1739722267940,-500.0,0.00011943,2]
[353265291,1739722267949,-500.0,0.00011943,2]
[353265292,1739722267958,-378.00955088,0.00011943,2]
[353265293,1739722267967,-591.3890352,0.00011943,2]
[353265294,1739722267976,-500.0,0.00011943,2]
[353265295,1739722267985,-500.0,0.00011943,2]
[353265296,1739722267994,-500.0,0.00011943,2]
[353265297,1739722268003,-500.0,0.00011943,2]
[353265298,1739722268013,-500.0,0.00011943,2]
[353265299,1739722268022,-500.0,0.00011943,2]
[353265300,1739722268036,-579.79,0.00011943,2]
[353265301,1739722268045,-500.0,0.00011943,2]
[353265302,1739722268055,-500.0,0.00011943,2]
[353265303,1739722268064,-500.0,0.00011943,2]
[353265304,1739722268074,-500.0,0.00011943,2]
[353265305,1739722268083,-500.0,0.00011943,2]
[353265306,1739722268092,-500.0,0.00011943,2]
[353265307,1739722268102,-500.0,0.00011943,2]
[353265308,1739722268112,-500.0,0.00011943,2]
[353265309,1739722268122,-500.0,0.00011943,2]
[353265310,1739722268131,-706.17,0.00011943,2]
[353265311,1739722268141,-500.0,0.00011943,2]
[353265312,1739722268150,-500.0,0.00011943,2]
[353265313,1739722268161,-500.0,0.00011943,2]
[353265314,1739722268170,-768.0,0.00011943,2]